Cogmind - Beta 9.6 @@@ ROGUE MODE // 2020.05.14 @ 19:48:10 Player: Demise Result: Destroyed by as-45923 with Assembled Blade Performance ------------- Evolutions (1) 500 Regions Visited (3) 600 Robots Destroyed (30) 150 Value Destroyed (493) 493 Prototype IDs (0) 0 Alien Tech Used (0) 0 Bonus (11) 11 TOTAL SCORE: 1754 Bonus ------- High Alert Combat Kills 11 Cogmind --------- Core Integrity 0/400 Matter 279/350 Energy 49/100 System Corruption 2% Temperature Cool (0) Movement Core (650) Ox12 Location -9/Mines Parts ------- > --- POWER (1) -------- (None) > --- PROPULSION (2) --- (None) > --- UTILITY (4) ------ Small Storage Unit Large Storage Unit Large Storage Unit Small Matter Pod > --- WEAPON (2) ------- (None) > --- INVENTORY (18) --- Improved Sensor Array Improved Terrain Scanner Seismic Analyzer Peak State ------------ > --- POWER ------------ Ion Engine > --- PROPULSION ------- Light Treads Armored Wheel > --- UTILITY ---------- Large Storage Unit Visual Processing Unit Targeting Computer Medium Armor Plating > --- WEAPON ----------- Medium Laser Light Assault Rifle > --- INVENTORY -------- Ion Engine Light Treads Compact Wheel Small Storage Unit Large Storage Unit Small Matter Pod Improved Terrain Scanner Seismic Analyzer Grenade Launcher Mining Laser [Rating: 13] Favorites ----------- Power Ion Engine Engine Ion Engine Propulsion Light Treads Treads Light Treads Leg Aluminum Leg Wheel Compact Wheel Utility Large Storage Unit Device Improved Terrain Scanner Storage Large Storage Unit Processor Targeting Computer Protection Medium Armor Plating Weapon Medium Laser Energy Gun Medium Laser Ballistic Gun Light Assault Rifle Launcher Grenade Launcher Build | -11 -10 -9 -9 ------- Run | Scr Mat Mat Min Slots Evolved 2 | . . 2 . Power . | . . . . Propulsion . | . . . . Utility 2 | . . 2 . Weapon . | . . . . Parts Attached 21 | 3 2 8 8 Power 2 | . . 1 1 Engine 2 | . . 1 1 Core . | . . . . Reactor . | . . . . Propulsion 6 | 2 . 3 1 Treads 2 | 1 . 1 . Leg . | . . . . Wheel 4 | 1 . 2 1 Hover . | . . . . Flight . | . . . . Utility 9 | 1 2 3 3 Device 1 | 1 . . . Storage 4 | . 1 . 3 Processor 2 | . 1 1 . Hackware . | . . . . Protection 2 | . . 2 . Artifact . | . . . . Weapon 4 | . . 1 3 Energy Gun 2 | . . . 2 Energy Cannon . | . . . . Ballistic Gun . | . . . . Ballistic Cannon . | . . . . Launcher 1 | . . 1 . Special Weapon 1 | . . . 1 Impact Weapon . | . . . . Slashing Weapon . | . . . . Piercing Weapon . | . . . . Special Melee Weapon . | . . . . Unidentified Prototypes . | . . . . Parts Lost 14 | . . 4 10 Power 3 | . . 1 2 Propulsion 3 | . . . 3 Utility 3 | . . 1 2 Weapon 5 | . . 2 3 Highest Loss Streak 10 | . . 4 10 Average Slot Usage (%) 88 | . 100 87 59 Engine 10 | . 14 10 3 Treads 11 | . 14 11 9 Wheel 12 | . 14 11 11 Device 2 | . 7 . . Storage 12 | . 14 11 11 Processor 15 | . 7 20 18 Protection 2 | . . 5 . Energy Gun 9 | . 14 7 6 Ballistic Gun 9 | . 14 7 . Launcher 1 | . . 2 . Naked Turns . | . . . . Heaviest Build 42 | 13 25 32 42 Greatest Support 20 | 20 16 20 20 Greatest Overweight (x) 3 | . 1 2 3 Average Overweight (x) . | . . 1 . Largest Inventory Capacity 18 | 6 10 10 18 Average Capacity 9 | 6 9 10 10 Most Carried 10 | 6 10 10 9 Average Carried 8 | 5 8 9 8 Final Capacity 18 | 6 10 10 18 Final Carried 10 | 6 10 10 3 Class Distribution -------------------- 100% | Mutant Dominant Class ---------------- Mutant | -10/Materials Mutant | -9/Materials Mutant | -9/Mines Resources | -11 -10 -9 -9 ----------- Run | Scr Mat Mat Min Matter Collected 428 | 280 30 102 16 Remotely . | . . . . Salvage Created 746 | 245 170 331 . Parts 47 | 17 5 25 . Haulers Intercepted 1 | . . 1 . Recyclers Shooed . | . . . . Parts Field Recycled . | . . . . Retrieved Matter . | . . . . Parts Self-Destructed . | . . . . Prevented . | . . . . Kills | -11 -10 -9 -9 ------- Run | Scr Mat Mat Min Combat Hostiles Destroyed 16 | . 4 12 . Guns 7 | . 4 3 . AOE 9 | . . 9 . Classes Destroyed 10 | 3 1 6 . Worker 4 | 2 . 2 . Builder 1 | . . 1 . Tunneler 5 | 5 . . . Hauler 1 | . . 1 . Recycler 1 | 1 . . . Operator 1 | . . 1 . Watcher 1 | . . 1 . Swarmer 7 | . . 7 . Grunt 6 | . 4 2 . Sentry 3 | . . 3 . Best Kill Streak 10 | 4 3 10 . Combat Bots Only 8 | . 3 8 . Max Kills in Single Turn 3 | 1 1 3 . Gunslinging . | . . . . Exploded 3 | . . 3 . Melee . | . . . . Uniques/NPCs Destroyed . | . . . . Combat | -11 -10 -9 -9 -------- Run | Scr Mat Mat Min Damage Taken 1765 | . 123 601 1041 Core 450 | . 35 88 327 Absorbed by Shields . | . . . . Core Remaining (%) 93 | 100 86 . . Volleys Fired 69 | 23 10 31 5 Largest 2 | 2 2 2 1 Hottest 70 | 70 70 70 65 Shots Fired 124 | 46 20 53 5 Gun 114 | 46 20 43 5 Cannon . | . . . . Launcher 10 | . . 10 . Special . | . . . . Kinetic 57 | 23 10 24 . Thermal 57 | 23 10 19 5 Explosive 10 | . . 10 . Electromagnetic . | . . . . Robot Hit Streak 31 | 8 9 31 9 Robot Miss Streak 4 | 4 1 3 1 Penetration Max . | . . . . Secondary Targets . | . . . . Shots Hit Robots 90 | 28 16 43 3 Core Hits 53 | 12 8 30 3 Critical Hits 1 | . 1 . . Critical Kills . | . . . . Critical Parts Destroyed 1 | . 1 . . Melee Attacks . | . . . . Impact . | . . . . Slashing . | . . . . Piercing . | . . . . Sneak Attacks . | . . . . Combat Hostiles . | . . . . Follow-up Attacks . | . . . . Damage Inflicted 1902 | 333 178 1337 54 Guns 911 | 333 178 359 41 Cannons . | . . . . Explosions 978 | . . 978 . Melee . | . . . . Ramming 13 | . . . 13 Kinetic 312 | 108 68 136 . Thermal 599 | 225 110 223 41 Explosive 978 | . . 978 . Electromagnetic . | . . . . Impact . | . . . . Slashing . | . . . . Piercing . | . . . . Highest Corruption 2 | . . . 2 Average Corruption 2 | . . . 2 Corruption Purged . | . . . . Overload Shots . | . . . . Overflow Damage 51 | . . 51 . Projectiles . | . . . . Explosions 51 | . . 51 . Melee . | . . . . Knockbacks . | . . . . Impact . | . . . . Kinetic . | . . . . Secondary . | . . . . Self-Inflicted Damage 4 | . . . 4 Shots . | . . . . Rammed 7 | . . . 7 Targets Rammed 7 | . . . 7 Kicked . | . . . . Crushed . | . . . . Highest Temperature 174 | 130 104 174 24 Average Temperature 50 | 53 51 49 14 Received Heat Transfer 294 | . 66 168 60 Siege Activations . | . . . . Robots Corrupted . | . . . . Combat Hostiles . | . . . . Parts Fried . | . . . . Impact Corruptions . | . . . . Robots Melted . | . . . . Combat Hostiles . | . . . . Parts Melted 1 | . 1 . . Heat Transferred 1776 | 666 333 666 111 Parts Sabotaged . | . . . . Parts Stolen . | . . . . Parts Stripped . | . . . . Power Chain Reactions . | . . . . Missiles Intercepted . | . . . . Alert | -11 -10 -9 -9 ------- Run | Scr Mat Mat Min Peak Influence 434 | 40 121 434 169 Average Influence 117 | 21 44 209 135 Maximum Alert Level 2 | . . 2 . Low Security (%) 86 | 100 100 67 100 Level 1 6 | . . 15 . Level 2 7 | . . 17 . Level 3 . | . . . . Level 4 . | . . . . Level 5 . | . . . . High Security . | . . . . Max Security . | . . . . Squads Dispatched 2 | . 1 1 . Investigation 1 | . 1 . . Extermination . | . . . . Reinforcement 1 | . . 1 . Assault . | . . . . Garrison . | . . . . Intercept . | . . . . Construction Impeded . | . . . . Haulers Reinforced . | . . . . Stealth | -11 -10 -9 -9 --------- Run | Scr Mat Mat Min Distress Signals . | . . . . Communications Jammed . | . . . . Distress Signals . | . . . . Times Spotted 44 | . 5 22 17 Peak Tracking Total 13 | . 2 8 13 Tactical Retreats 2 | . 1 . 1 Traps | -11 -10 -9 -9 ------- Run | Scr Mat Mat Min Traps Triggered . | . . . . Indirectly . | . . . . Trap Hack Attempts . | . . . . Triggered . | . . . . Disarmed . | . . . . Reprogrammed . | . . . . Reused . | . . . . Traps Extracted . | . . . . Installed . | . . . . Triggered . | . . . . Machines | -11 -10 -9 -9 ---------- Run | Scr Mat Mat Min Machines Disabled . | . . . . Max in Single Turn . | . . . . Machines Sabotaged . | . . . . Garrisons Compromised . | . . . . Overloaded Fab Kills . | . . . . Fab Network Shutdowns . | . . . . Hacking | -11 -10 -9 -9 --------- Run | Scr Mat Mat Min Machines Accessed 1 | . 1 . . Terminals 1 | . 1 . . Fabricators . | . . . . Repair Stations . | . . . . Recycling Units . | . . . . Scanalyzers . | . . . . Garrison Access . | . . . . Total Hacks 4 | . 4 . . Successful 1 | . 1 . . Failed 3 | . 3 . . Catastrophic . | . . . . Database Lockouts . | . . . . Manual 4 | . 4 . . Terminals 4 | . 4 . . Fabricators . | . . . . Repair Stations . | . . . . Recycling Units . | . . . . Scanalyzers . | . . . . Garrison Access . | . . . . Terminal Hacks . | . . . . Fabricator Hacks . | . . . . Repair Station Hacks . | . . . . Recycling Unit Hacks . | . . . . Scanalyzer . | . . . . Garrison Access Hacks . | . . . . Unauthorized Hacks 1 | . 1 . . Terminals 1 | . 1 . . Botnet 1 | . 1 . . Fabricators . | . . . . Repair Stations . | . . . . Recycling Units . | . . . . Scanalyzers . | . . . . Garrison Access . | . . . . Data Cores Recovered . | . . . . Used . | . . . . Hacking Detections 1 | . 1 . . Full Trace Events 1 | . 1 . . Feedback Events . | . . . . Feedback Blocked . | . . . . Robot Schematics Acquired . | . . . . Robots Built . | . . . . Matter . | . . . . Time . | . . . . Total Robot Build Rating . | . . . . Part Schematics Acquired . | . . . . Parts Built . | . . . . Matter . | . . . . Time . | . . . . Total Part Build Rating . | . . . . Parts Repaired . | . . . . Time . | . . . . Parts Recycled . | . . . . Recycled Matter . | . . . . Retrieved Matter . | . . . . Retrieved Components . | . . . . Parts Scanalyzed . | . . . . Part Schematics Acquired . | . . . . Parts Damaged . | . . . . Bothacking | -11 -10 -9 -9 ------------ Run | Scr Mat Mat Min Used RIF Installer . | . . . . Robots Hacked . | . . . . Non-combat . | . . . . Combat . | . . . . Robot Hacks Applied . | . . . . Relay Couplers Released . | . . . . Robots Rewired . | . . . . Allies Hacked . | . . . . Hacks Repelled . | . . . . Allies | -11 -10 -9 -9 -------- Run | Scr Mat Mat Min Total Allies 3 | . . . 3 Largest Group 3 | . . . 3 Highest-Rated Group 40 | . . . 40 Highest-Rated Ally 16 | . . . 16 Total Orders . | . . . . Ally Attacks 20 | . . . 20 Total Damage 189 | . . . 189 Kills 3 | . . . 3 Allies Corrupted . | . . . . Allies Melted . | . . . . Intel | -11 -10 -9 -9 ------- Run | Scr Mat Mat Min Robot Analysis Total . | . . . . Derelict Logs Recovered . | . . . . Drone Launches . | . . . . Drone Recoveries . | . . . . Exploration | -11 -10 -9 -9 ------------- Run | Scr Mat Mat Min Turns Passed 766 | 158 214 323 71 Spaces Moved 443 | 77 164 179 23 Core . | . . . . Treads 51 | . . 29 22 Legs 3 | 3 . . . Wheels 389 | 74 164 150 1 Hover . | . . . . Flight . | . . . . Fastest Speed 100 | 100 100 100 120 Average Speed 114 | 100 109 119 166 Slowest Speed 180 | 120 110 180 180 Overloaded Moves . | . . . . Propulsion Burnouts . | . . . . Robots Hopped . | . . . . Cave-ins Triggered . | . . . . Exploration Rate (%) 16 | 5 30 23 7 Regions Visited 3 Branch Regions 1 Pre-discovered Areas . | . . . . Known Exits Taken . | . . . . Unknown Exits Taken 3 | 1 1 1 . Scrap Searched . | . . . . Spaces Dug . | . . . . Terrain Destroyed 34 | . . 34 . Melee . | . . . . Projectile . | . . . . AOE 34 | . . 34 . Actions | -11 -10 -9 -9 --------- Run | Scr Mat Mat Min Total 585 | 117 181 242 45 Wait 27 | 7 1 17 2 Move 440 | 76 163 178 23 Hop . | . . . . Pick Up 9 | 4 3 2 . Fast Attach 6 | 1 1 3 1 Attach 9 | 2 . . 7 Detach 1 | . 1 . . Swap 6 | . 1 5 . Drop 11 | 4 1 6 . Fire 69 | 23 10 31 5 Melee . | . . . . Ram 3 | . . . 3 Kick . | . . . . Crush 4 | . . . 4 Escape Stasis . | . . . . Rewire . | . . . . Trap . | . . . . Miscellaneous . | . . . . Route ------- -11/Scrapyard -10/Materials -9/Materials -9/Mines History --------- Turn | Location | Event 21 | -11/Scrapyard | Discovered new exit (range 2) 159 | -11/Scrapyard | Entered Materials 306 | -10/Materials | Build established: Mutant 362 | -10/Materials | Discovered new exit (range 11) 373 | -10/Materials | Entered another Materials area 373 | -9/Materials | Evolved 2 slots: Utility x2 618 | -9/Materials | Discovered new exit (range 16) 630 | -9/Materials | Destroyed 8 combat bots 690 | -9/Materials | Lost 4 parts (1p1u2w) 696 | -9/Materials | Entered Mines 697 | -9/Mines | Assembled infested the area 702 | -9/Mines | Assisted by a Guerilla fighting off Assembled 732 | -9/Mines | Assisted by bots powering up and referring to "LRC-V3" 757 | -9/Mines | Core integrity fell below 50% 763 | -9/Mines | Core integrity fell below 20% 767 | -9/Mines | Destroyed by as-45923 with Assembled Blade Last Messages --------------- 00744_ Acquired Particle Gun. 00746_ as-71816 destroyed. 00749_ Particle Gun destroyed. 00751_ Trooper 2a destroyed. 00751_ Slammed into as-66337. 00753_ Slammed into as-08358. 00754_ Lgt. Treads destroyed. 00755_ as-66243 sneak attacks. 00755_ T-07 Excavator destroyed. 00755_ Slammed into as-08358. 00755_ Targeting Computer destroyed. 00755_ Arm. Wheel destroyed. 00755_ Visual Processing Unit destroyed. 00755_ System corrupted by crushing effect (+2). 00756_ Slammed into as-08358. 00764_ Mining Laser destroyed. 00764_ as-89821 destroyed. 00765_ Slammed into as-45923. 00766_ Ion Engine destroyed. 00766_ Arm. Wheel destroyed. Map ----- +----------------------------------------------------+ | ???????????????????????????????????????????? | | ???????????????????????????????????????????? | | ???????????????????????????????????????????? | | ???????????????????????????????????????????? | | ???????????????????????????????????????????? | | ???????????????????????????????????????????? | | ???????????????????????????????????????????? | | ???????????????????????????????????????????? | | ???????????????????????????????????????????? | | ???????????????????????????????????????????? | | ???????????????????????????????????????????? | | ???????????????????????????????????????????? | | ???????????????????????????????????????????? | | ???????????????????????????????????????????? | | ???????????????####????????????????????????? | | ??????????????## ########?????????????????? | | ??????????????# #?????????????????? | | ???????# ##### ####; #?????????????????? | | ???????# #???# ###???????????????? | | ???????# #?###%# #???????????????? | | ???????######### #?# # #;#???????????????? | | ???????????????# #??;; ##??????????????? | | ???????????????## ##### a #??????????????? | | ????????????????###%a%= a %]#??????????????? | | ??????????????????#% a%aaa%%##?????????????? | | ??????????????????# aa @ #?????????????? | | ??????????????????##### % #?????????????? | | ??????????????????????#####%|#?????????????? | | ???????????????????????????= #?????????????? | | ??????????????????????????? #?????????????? | | ??????????????????????????? #?????????????? | | ??????????????????????????? #?????????????? | | ??????????????????????????? #?????????????? | | ??????????????????????????? ?????????????? | | ??????????????????????????? ?????????????? | | ??????????????????????????? ????????????? | | ???????????????????????????? ????????????? | | ???????????????????????????? ????????????? | | ???????????????????????????? ???????????? | | ????????????????????????????#??????????????? | | ???????????????????????????????????????????? | | ???????????????????????????????????????????? | | ???????????????????????????????????????????? | | ???????????????????????????????????????????? | | ???????????????????????????????????????????? | | ???????????????????????????????????????????? | | ???????????????????????????????????????????? | | ???????????????????????????????????????????? | | ???????????????????????????????????????????? | | ???????????????????????????????????????????? | +----------------------------------------------------+ Best States ------------- Heat Dissipation 28 Energy Generation 12 Energy Capacity 265 Matter Stores 300 Matter Capacity 300 Sight Range 18 Terrain Scan Range 16 Terrain Scan Density 10 Armor Coverage 225 Evasion (%) 40 Targeting Accuracy 5 Recoil Reduction 1 Item Schematics ----------------- None Robot Schematics ------------------ None Fabricated ------------ Nothing Alien Tech Used ----------------- None Achievements -------------- None Challenges ------------ None Game ------ Seed PhaseHellfireEdition Manual? 0 Play Time 00:11:52 Cumulative 200.0 hours Start 2020.05.14 @ 13:35:52 End 2020.05.14 @ 19:48:10 Sessions 3 Manual Loads 0 Difficulty Rogue Special Mode None Game No. 259 Rogue 248 Adventurer 11 Explorer 0 Win Type - Total 0 Types 0/0/0/0/0/0/0 Lore% 51 Gallery% 64 Achievement% 45 Wizard Run 0 Options --------- ASCII 0 Keyboard 1 Movement Numpad Keybinds 0 Fullscreen 1 Font 12/Terminus Map View 83x54 Tactical HUD 1 Map Filters NONE Filters NONE Steam 1 RUN: 5149e6e1-adfb-49e3-a34f-59d3fb18f796